Cogmind - Beta 17.1 @@@ ROGUE MODE // 2026.09.21 @ 21:33:12 Player: MolePlayingNice Result: Destroyed by as-78451 with Assembled F-torch Performance ------------- Evolutions (0) 0 Regions Visited (2) 400 Robots Destroyed (10) 50 Value Destroyed (176) 176 Prototype IDs (1) 20 Alien Tech Used (0) 0 Bonus (5650) 5650 TOTAL SCORE: 6296 Bonus ------- Prayed to X0-1V1 5000 Major X0-1V1 Interference 650 Cogmind --------- Core Integrity 0/150 Matter 218/300 Energy 100/100 System Corruption 4% Temperature Warning (329) Movement Rolling (110) Ox2 Location -10/Mines Parts ------- > --- POWER (1) -------- (None) > --- PROPULSION (2) --- Wheel Wheel > --- UTILITY (2) ------ High-capacity Storage Unit X0-1V1's Piety Tracker > --- WEAPON (2) ------- Particle Gun Light Assault Rifle > --- INVENTORY (20) --- Light Ion Engine Aluminum Leg Aluminum Leg Aluminum Leg Aluminum Leg Aluminum Leg Wheel Heat Sink Small Storage Unit Medium Matter Pod (0) EM Pulse Gun Small Laser Light Assault Rifle Mining Laser Makeshift Axe Peak State ------------ > --- POWER ------------ Light Ion Engine > --- PROPULSION ------- Aluminum Leg Aluminum Leg > --- UTILITY ---------- High-capacity Storage Unit X0-1V1's Piety Tracker > --- WEAPON ----------- Particle Gun Assault Rifle > --- INVENTORY -------- Light Ion Engine Aluminum Leg Aluminum Leg Wheel Wheel Wheel Heat Sink Small Storage Unit Medium Matter Pod EM Pulse Gun Small Laser Light Assault Rifle Light Assault Rifle Mining Laser [Rating: 21] Favorites ----------- Power Ion Engine Engine Ion Engine Propulsion Light Treads Treads Light Treads Leg Aluminum Leg Wheel Wheel Utility High-capacity Storage Unit Device X0-1V1's Piety Tracker Storage High-capacity Storage Unit Weapon Assault Rifle Energy Gun Particle Gun Ballistic Gun Assault Rifle Build | -11 -10 -10 ------- Run | Yrd Mat Min Slots Evolved . | . . . Power . | . . . Propulsion . | . . . Utility . | . . . Weapon . | . . . Parts Attached 12 | . 5 7 Power 1 | . . 1 Engine 1 | . . 1 Core . | . . . Reactor . | . . . Propulsion 6 | . 2 4 Treads 2 | . 2 . Leg 2 | . . 2 Wheel 2 | . . 2 Hover . | . . . Flight . | . . . Utility 2 | . 2 . Device 1 | . 1 . Storage 1 | . 1 . Processor . | . . . Hackware . | . . . Protection . | . . . Artifact . | . . . Weapon 3 | . 1 2 Energy Gun 1 | . . 1 Energy Cannon . | . . . Ballistic Gun 2 | . 1 1 Ballistic Cannon . | . . . Launcher . | . . . Special Weapon . | . . . Impact Weapon . | . . . Slashing Weapon . | . . . Piercing Weapon . | . . . Special Melee Weapon . | . . . Unidentified Prototypes 1 | . 1 . Parts Lost 6 | . . 6 Power 2 | . . 2 Propulsion 2 | . . 2 Utility . | . . . Weapon 2 | . . 2 Highest Loss Streak 5 | . . 5 To Critical Strikes . | . . . Average Backups 12 | 6 9 14 Power 1 | 1 1 1 Propulsion 5 | 4 5 6 Utility 1 | . . 2 Weapon 3 | 1 1 4 Tool/Special . | . . . Unused Backups 13 | . . 13 Power 1 | . . 1 Propulsion 4 | . . 4 Utility 3 | . . 3 Weapon 5 | . . 5 Tool/Special . | . . . Average Slot Usage (%) 93 | . 86 98 Engine 14 | . 14 14 Treads 18 | . 13 22 Leg 8 | . 14 3 Wheel 1 | . . 2 Device 8 | . 1 14 Storage 14 | . 14 14 Energy Gun 2 | . 1 2 Ballistic Gun 25 | . 26 24 Peak Build Rating 21 | 6 20 21 Average Rating 14 | 6 7 20 On Entrance 10 | 6 6 20 Avg Prop Armor Cover (%) . | . . . Naked Turns . | . . . Heaviest Build 50 | 14 50 50 Greatest Support 40 | 20 40 40 Greatest Overweight (x) 2 | . 1 2 Average Overweight (x) . | . . 1 Largest Inventory Capacity 20 | 8 20 20 Average Capacity 17 | 8 14 20 Most Carried 18 | 6 12 18 Average Carried 12 | 6 9 14 Final Capacity 20 | 8 20 20 Final Carried 15 | 6 12 15 Class Distribution -------------------- 100% | Mutant Dominant Class ---------------- Mutant | -10/Materials Mutant | -10/Mines Resources | -11 -10 -10 ----------- Run | Yrd Mat Min Matter Collected 443 | 200 70 173 Remotely . | . . . Salvage Created 333 | . 143 190 Parts 17 | . 6 11 Haulers Intercepted . | . . . Recyclers Shooed . | . . . Parts Field Recycled . | . . . Retrieved Matter . | . . . Parts Self-Destructed . | . . . Prevented . | . . . Parts Restored . | . . . Kills | -11 -10 -10 ------- Run | Yrd Mat Min Combat Hostiles Destroyed 17 | . 5 12 Guns 16 | . 5 11 AOE 1 | . . 1 Classes Destroyed 4 | . 2 2 Worker 1 | . . 1 Swarmer 6 | . 3 3 Grunt 3 | . 2 1 Assembled 8 | . . 8 Best Kill Streak 3 | . 3 3 Combat Bots Only 3 | . 3 3 Max Kills in Single Turn 1 | . 1 1 Gunslinging . | . . . Exploded 1 | . . 1 Melee . | . . . Uniques/NPCs Destroyed . | . . . Combat | -11 -10 -10 -------- Run | Yrd Mat Min Hostile Shots Fired 84 | . 21 63 Missed 24 | . 6 18 Hits 60 | . 15 45 Melee 12 | . . 12 Projectile 48 | . 15 33 Critical Strikes 3 | . 1 2 Damage Taken 961 | . 160 801 Core 150 | . . 150 Absorbed by Shields . | . . . Core Remaining (%) 100 | 100 . . Volleys Fired 51 | . 10 41 Largest 2 | . 2 2 Hottest 85 | . 40 85 Shots Fired 96 | . 20 76 Gun 96 | . 20 76 Cannon . | . . . Launcher . | . . . Special . | . . . Kinetic 84 | . 20 64 Thermal 12 | . . 12 Explosive . | . . . Electromagnetic . | . . . Robot Hit Streak 7 | . 4 7 Robot Miss Streak 8 | . 2 8 Penetration Max . | . . . Secondary Targets 2 | . 1 1 Max Gunslinging Chain 1 | . 1 1 Shots Hit Robots 50 | . 11 39 Core Hits 27 | . 7 20 Critical Kills . | . . . Critical Parts Destroyed . | . . . Critical Strikes . | . . . Melee Attacks . | . . . Impact . | . . . Slashing . | . . . Piercing . | . . . Sneak Attacks . | . . . Combat Hostiles . | . . . Follow-up Attacks . | . . . Damage Inflicted 630 | . 140 490 Guns 615 | . 140 475 Cannons . | . . . Explosions . | . . . Melee . | . . . Ramming 15 | . . 15 Kinetic 537 | . 140 397 Thermal 78 | . . 78 Explosive . | . . . Electromagnetic . | . . . Impact . | . . . Slashing . | . . . Piercing . | . . . Highest Corruption 4 | . . 4 Average Corruption 4 | . . 4 Corruption Purged . | . . . Corruption Blocked . | . . . Overload Shots . | . . . Overflow Damage . | . . . Projectiles . | . . . Explosions . | . . . Melee . | . . . Knockbacks . | . . . Impact . | . . . Kinetic . | . . . Secondary . | . . . Self-Inflicted Damage . | . . . Shots . | . . . Rammed . | . . . Targets Rammed 1 | . . 1 Kicked . | . . . Crushed 1 | . . 1 Highest Temperature 309 | . 20 309 Average Temperature 89 | . 7 99 Received Heat Transfer 444 | . 78 366 Siege Activations . | . . . Martial Activations . | . . . Shielding Activations . | . . . Robots Disrupted . | . . . Combat Hostiles . | . . . Robots Corrupted . | . . . Combat Hostiles . | . . . Parts Fried . | . . . Impact Corruptions . | . . . Robots Melted . | . . . Combat Hostiles . | . . . Parts Melted . | . . . Heat Transferred 185 | . . 185 Parts Sabotaged . | . . . Parts Stolen . | . . . Parts Stripped . | . . . Power Chain Reactions . | . . . Alert | -11 -10 -10 ------- Run | Yrd Mat Min Maximum Alert Level . | . . . Low Security (%) 100 | 100 100 100 Level 1 . | . . . Level 2 . | . . . Level 3 . | . . . Level 4 . | . . . Level 5 . | . . . High Security . | . . . Max Security . | . . . Peak Influence 130 | . 130 70 Initial . | . . . Average 27 | . 52 10 Influence Increases 245 | . 150 95 Destroy 0b10 Robot/C 180 | . 100 80 Destroy 0b10 Robot/NC 5 | . . 5 Destroy Leader 30 | . 20 10 Lose Combat Pursuer 30 | . 30 . Influence Decreases 245 | . 150 95 Time Decay 245 | . 150 95 Squads Dispatched 2 | . 2 . Investigation 1 | . 1 . Extermination . | . . . Reinforcement 1 | . 1 . Assault . | . . . Garrison . | . . . Intercept . | . . . Searches Triggered . | . . . Construction Impeded . | . . . Haulers Reinforced . | . . . Active Scanning Responses . | . . . Cargo Convoy Interrupts . | . . . Stealth | -11 -10 -10 --------- Run | Yrd Mat Min Distress Signals 4 | . 2 2 Communications Jammed . | . . . Distress Signals . | . . . Times Spotted 32 | . 11 21 Peak Tracking Total 5 | . 3 5 Tactical Retreats 3 | . 1 2 Traps | -11 -10 -10 ------- Run | Yrd Mat Min Traps Triggered . | . . . Indirectly . | . . . Trap Hack Attempts . | . . . Triggered . | . . . Disarmed . | . . . Reprogrammed . | . . . Reused . | . . . Traps Extracted . | . . . Installed . | . . . Triggered . | . . . Machines | -11 -10 -10 ---------- Run | Yrd Mat Min Machines Disabled . | . . . Max in Single Turn . | . . . Machines Repaired . | . . . Machines Dismantled . | . . . Machines Sabotaged . | . . . Overloaded Fab Kills . | . . . Hacking | -11 -10 -10 --------- Run | Yrd Mat Min Machines Accessed . | . . . Terminals . | . . . Fabricators . | . . . Repair Stations . | . . . Recycling Units . | . . . Scanalyzers . | . . . Garrison Access . | . . . Total Hacks . | . . . Successful . | . . . Failed . | . . . Catastrophic . | . . . Database Lockouts . | . . . Manual 1 | . 1 . Terminals . | . . . Fabricators . | . . . Repair Stations . | . . . Recycling Units . | . . . Scanalyzers . | . . . Garrison Access . | . . . Terminal Hacks . | . . . Fabricator Hacks . | . . . Repair Station Hacks . | . . . Recycling Unit Hacks . | . . . Scanalyzer . | . . . Garrison Access Hacks . | . . . Unauthorized Hacks . | . . . Terminals . | . . . Fabricators . | . . . Repair Stations . | . . . Recycling Units . | . . . Scanalyzers . | . . . Garrison Access . | . . . Data Cores Recovered . | . . . Used . | . . . Hacking Detections . | . . . Full Trace Events . | . . . Feedback Events . | . . . Feedback Blocked . | . . . Robot Schematics Acquired . | . . . Robots Built . | . . . Authchips . | . . . Time . | . . . Total Robot Build Rating . | . . . Part Schematics Acquired . | . . . Parts Built . | . . . Authchips . | . . . Time . | . . . Total Part Build Rating . | . . . Part Studies Acquired . | . . . Parts Repaired . | . . . Time . | . . . Parts Recycled . | . . . Recycled Matter . | . . . Retrieved Matter . | . . . Retrieved Components . | . . . Parts Scanalyzed . | . . . Part Schematics Acquired . | . . . Parts Damaged . | . . . Bothacking | -11 -10 -10 ------------ Run | Yrd Mat Min Used RIF Installer . | . . . Robots Hacked . | . . . Non-combat . | . . . Combat . | . . . Robot Hacks Applied . | . . . Relay Couplers Released . | . . . Fabnet Peak Effective % . | . . . Robots Rewired . | . . . Allies Hacked . | . . . Hacks Repelled . | . . . Allies | -11 -10 -10 -------- Run | Yrd Mat Min Total Allies . | . . . Largest Group . | . . . Highest-Rated Group . | . . . Highest-Rated Ally . | . . . Total Orders . | . . . Ally Attacks . | . . . Total Damage . | . . . Kills . | . . . Allies Corrupted . | . . . Allies Melted . | . . . X0-1V1 Amusement Gains 41 | . 21 20 Average Entertainment 29 | . 21 29 Good Acts 3 | . . 3 Bad Acts 6 | . . 6 Intel | -11 -10 -10 ------- Run | Yrd Mat Min Active Infowar (turns) . | . . . Robot Analysis Total . | . . . Derelict Logs Recovered 2 | . . 2 Drone Launches . | . . . Drone Recoveries . | . . . Exploration | -11 -10 -10 ------------- Run | Yrd Mat Min Turns Passed 895 | 3 371 521 Spaces Moved 347 | 3 167 177 Core . | . . . Treads 187 | . 50 137 Legs 129 | 3 117 9 Wheels 31 | . . 31 Hover . | . . . Flight . | . . . Fastest Speed 110 | 120 120 110 Average Speed 187 | 120 155 218 Slowest Speed 260 | 120 240 260 Overloaded Moves . | . . . Propulsion Burnouts . | . . . Robots Hopped . | . . . Potential Cave-ins . | . . . Cave-ins Triggered . | . . . Exploration Rate (%) 23 | 2 28 39 Regions Visited 2 Branch Regions 1 Pre-discovered Areas . | . . . Known Exits Taken . | . . . Unknown Exits Taken 2 | 1 1 . Scrap Searched . | . . . Spaces Dug . | . . . Terrain Destroyed . | . . . Melee . | . . . Projectile . | . . . AOE . | . . . Terrain Rammed . | . . . Walls Destroyed . | . . . Machines Disabled . | . . . Actions | -11 -10 -10 --------- Run | Yrd Mat Min Total 495 | 2 257 236 Wait 72 | . 70 2 Move 345 | 2 166 177 Hop . | . . . Pick Up 13 | . 5 8 Fast Attach 2 | . 2 . Attach 5 | . . 5 Detach 1 | . 1 . Swap 5 | . 3 2 Drop . | . . . Fire 51 | . 10 41 Melee . | . . . Ram . | . . . Kick . | . . . Crush 1 | . . 1 Escape Stasis . | . . . Rewire . | . . . Trap . | . . . Miscellaneous . | . . . Route ------- -11/Scrapyard -10/Materials -10/Mines History --------- Turn | Location | Event 1 | -11/Scrapyard | Discovered new exit (range 3) 4 | -11/Scrapyard | Entered Materials 211 | -10/Materials | Discovered new exit (range 11) 308 | -10/Materials | Build established: Mutant 336 | -10/Materials | Prayed at D.C.S.S. Altar Unit 375 | -10/Materials | Entered Mines 470 | -10/Mines | Learned Materials stockpile data 529 | -10/Mines | Assembled infested the area 534 | -10/Mines | Assisted by a Guerilla fighting off Assembled 601 | -10/Mines | Energy generation permanently improved by X0-1V1 (+10; -100 max core) 823 | -10/Mines | Core integrity fell below 50% 850 | -10/Mines | Lost 5 parts (1p2n2w) 888 | -10/Mines | Core integrity fell below 20% 896 | -10/Mines | Destroyed by as-78451 with Assembled F-torch Last Messages --------------- 00819_ System corrupted by crushing effect (+4). 00822_ X0-1V1 feels inspired! as-23476 Asb. Maul replaced by Hvy. Flail. as-53469 Asb. Blade replaced by Mak. Axe. 00825_ as-23476 destroyed. 00833_ as-53469 destroyed. 00838_ Acquired Mak. Axe. 00847_ Acquired 19 matter. 00857_ Acquired Aluminum Leg. 00858_ Acquired 50 matter. 00859_ Acquired 10 matter. 00861_ X0-1V1 curses 1 of your inventory parts (corrupted). 00870_ A derelict is hurriedly installing traps. 00872_ CP-IP7(g): "Hehe, this'll put a wrench in their mining defense operations..." 00872_ CP-IP7(g) slips into the shadows. 00881_ Critical hit (Burn: +80). 00893_ Lgt. Ion Engine destroyed. 00896_ X0-1V1 guffaws! Map ----- +----------------------------------------------------+ | ????????????? #????????????????????????????????? | | ?????????????? !=#???????????????????????????????? | | ???????????????=%*???????????????????????????????? | | ????????????????* ??????????????????????????????? | | ????????????????# ??????????????????????????????? | | ????????????????# ?????????????????????????????? | | ???????????###### ?????????????????????????????? | | ???????????? |%= ????????????????????????????? | | ???????????????* ??????????####?????????????? | | ??????????????????# ####?????## ##????????????? | | ??????????????????# #""####### #????????????? | | ??????????????????# % = #????????????? | | ?????????????#*???# % ##????????????? | | ?????????????#%???## ######%% ##?????????????? | | ?????????????#!????# #????# #??????????????? | | ?????????????#=###?## "##???## #??????????????? | | ?????????##### "??######### ##?????????????? | | ???????###"" #????## ##????????????? | | ???????#!%= % "#??## #????????????? | | ????????!=! =% "#??# #????????????? | | ?????????== %] % ##?# ## ##????????????? | | ??????????? = #?## #?## ##?????????????? | | ???????????? #??###??## #??????????????? | | ????????????? #??????## ##?????????????? | | ?????????????? ??##### ##????????????? | | ??????????????? =% ???# @ #########????? | | ????????????????#%! ???#a#### #####? | | ????????????????#! ##### #??####% #? | | ????????????????# = #?????# # | | ????????????????#!%#######?????# # # | | ????????????????#!!###?????????# ## ## | | ????????????????# #?????????# *### ##? | | ????????????????#### #????####?# #??###### ##?? | | ???????????????????# #???## ### #?????????###??? | | ???????????????????# #???# ## #??????????????? | | ???????????????????# ##### ###????????????# | | ???????????????????# * #????????????# | | ???????????????????####### #???????????# | | ?????????????????????????# ### #???????????# | | ?????????????????????????# ##?### ##??????????## | | ?????????????????????????# ##?????##????######## | | ????????????????????????## #????????????# | | ??????????????????????### ###########??# | | ?????????????????????## #??# ### | | ?????????????????????# #??# #?# | | ?????????????????????# ########## #??# #?# | | ?????????????????????## #????????# #??# #?# | | ??????????????????????# ##?????#### #?## #?# | | ?????????????????????## ######## ### #### | | ????????????????????## #?### | +----------------------------------------------------+ Best States ------------- Heat Dissipation 25 Energy Generation 20 Energy Capacity 250 Matter Stores 300 Matter Capacity 300 Sight Range 19 Terrain Scan Density 10 Evasion (%) 55 Recoil Reduction 2 Item Schematics ----------------- None Robot Schematics ------------------ None Fabricated ------------ Nothing Repaired ---------- Nothing Studied --------- None Alien Tech Used ----------------- None Achievements -------------- None Challenges ------------ None Game ------ Seed UltimateNeutronCyclogen Manual? 0 Play Time 00:27:06 Cumulative 565.3 hours Start 2026.09.21 @ 20:57:32 End 2026.09.21 @ 21:33:12 Sessions 1 Manual Loads 0 Difficulty Rogue Special Mode None Game No. 216 Rogue 216 Adventurer 0 Explorer 0 Win Type - Total 24 Types 5/0/12/0/1/0/3/1/1/1 Lore% 83 Gallery% 86 Achievement% 79 Wizard Run 0 Options --------- Layout 1 ASCII 0 Keyboard 1 Movement Arrows Keybinds 0 Fullscreen 1 Font 24/Smallcaps Map View 50x35 Zoom Use 0% Tactical HUD 1 Map Filters NONE Filters NONE Steam 1 RUN: c73e9ddc-8f19-43f7-8c23-6daaef21ff26